bitfinex/quotes_SOLUSD_20240614
["timestamp","ask_amount","ask_price","bid_price","bid_amount"]
[1718400709895,7.7227,143.73,143.72,8.35340083]
[1718400710498,2.5742,143.73,143.72,8.35340083]
[1718400710725,2.5742,143.73,143.72,13.36583226]
[1718400711017,7.7227,143.73,143.72,23.38843924]
[1718400711434,25.7425,143.73,143.72,23.38843924]
[1718400711720,2.5744,143.72,143.67,25.753]
[1718400711925,15.4467,143.72,143.67,2.5752]
[1718400712125,15.4467,143.72,143.66,23.1788]
[1718400712126,2.5746,143.71,143.66,5.1508]
[1718400712431,23.1702,143.72,143.67,2.5753]
[1718400712432,23.1704,143.72,143.67,2.5753]
[1718400712611,25.745,143.72,143.67,2.5753]
[1718400712802,2.5747,143.71,143.66,25.7543]
[1718400712993,7.724,143.71,143.66,7.7262]
[1718400713199,15.4502,143.69,143.63,12.8799]
[1718400713398,15.4502,143.69,143.59,6.1557]
[1718400713399,29.29003914,143.76,143.59,27.1557]
[1718400713614,2.5745,143.72,143.67,5.1506]
[1718400713897,29.29003914,143.76,143.66,2.5754]
[1718400714101,2.5746,143.71,143.66,2.5754]
[1718400714301,25.7467,143.71,143.65,23.1803]
[1718400714526,23.1661,143.75,143.63,0.17]
[1718400714824,2.5739,143.75,143.7,7.7242]
[1718400715024,7.7223,143.74,143.69,25.749]
[1718400715207,2.5741,143.74,143.69,5.1497]
[1718400715422,23.1655,143.75,143.7,2.5747]
[1718400715616,15.3263,143.78,143.71,7.7238]
[1718400715617,15.4426,143.76,143.71,7.7238]
[1718400715823,7.7217,143.75,143.7,25.7469]
[1718400716127,7.7217,143.75,143.7,7.724]
[1718400716327,7.7217,143.75,143.69,18.0241]
[1718400716328,5.1482,143.74,143.69,23.1738]
[1718400716499,2.5741,143.74,143.7,2.5747]
[1718400716697,2.5741,143.74,143.64,21.0]
[1718400716698,2.5742,143.73,143.68,10.3006]
[1718400717041,2.5742,143.73,143.68,25.751]
[1718400717327,2.5742,143.73,143.69,2.5749]
[1718400717507,2.5742,143.73,143.63,0.51]
[1718400717702,2.5742,143.73,143.65,0.17]
[1718400718033,15.3263,143.71,143.55,21.0]
[1718400718203,23.1773,143.68,143.61,10.3053]
[1718400718407,23.1773,143.68,143.62,7.7284]
[1718400718408,2.5753,143.67,143.62,7.7284]
[1718400718604,7.7257,143.68,143.63,2.576]
[1718400719037,7.7257,143.68,143.62,23.1857]
[1718400719215,2.5752,143.68,143.63,2.5759]
[1718400719431,5.1503,143.68,143.57,21.0]
[1718400719649,15.4522,143.67,143.61,25.7637]
[1718400719853,7.7262,143.67,143.62,2.5762]
[1718400720231,2.5754,143.67,143.62,7.7286]
[1718400720438,121.7826,143.76,143.62,10.3048]
[1718400720643,2.5753,143.67,143.62,7.7282]
[1718400720949,5.1505,143.68,143.62,5.1522]
[1718400721151,7.7257,143.68,143.63,2.576]
[1718400721650,2.5755,143.67,143.62,7.7285]
[1718400721854,2.5755,143.66,143.61,5.1526]
[1718400722021,5.1504,143.68,143.62,5.1522]
[1718400722225,21.7826,143.71,143.53,100.0]
[1718400722448,18.029,143.66,143.59,10.307]
[1718400722668,2.5758,143.65,143.6,2.5765]
[1718400722822,7.7272,143.65,143.6,7.7296]
[1718400723022,2.5758,143.65,143.6,7.7296]
[1718400723247,121.7826,143.71,143.52,21.0]
[1718400723457,7.7273,143.65,143.6,2.5764]
[1718400723757,7.7273,143.65,143.47,5.52504199]
[1718400723758,100.0,143.75,143.59,6.3257]
[1718400723931,2.5754,143.67,143.62,7.7284]
[1718400724131,100.0,143.75,143.59,6.3257]
[1718400724132,2.5759,143.64,143.59,0.17]
[1718400724353,18.0327,143.63,143.57,2.5771]
[1718400724568,5.1522,143.63,143.57,12.8855]
[1718400724867,2.5759,143.64,143.59,7.7301]
[1718400725235,7.7273,143.65,143.6,2.5765]
[1718400725434,12.8786,143.65,143.6,2.5765]
[1718400725759,6.4563,143.66,143.56,0.17]
[1718400725960,9.0318,143.66,143.61,2.5763]
[1718400726143,9.0318,143.66,143.61,7.729]
[1718400726346,7.7272,143.65,143.6,2.5765]
[1718400726548,29.6366,143.66,143.61,2.5763]
[1718400726854,2.5757,143.65,143.61,2.5763]
[1718400727067,9.0319,143.66,143.61,7.729]
[1718400727248,2.5757,143.65,143.6,23.1886]
[1718400727449,2.5757,143.65,143.6,7.7295]
[1718400727762,100.0,143.75,143.63,7.7279]
[1718400727763,2.5752,143.68,143.63,7.7279]
[1718400727946,15.4502,143.69,143.64,2.5758]
[1718400728146,23.175,143.69,143.63,7.7279]
[1718400728362,2.5753,143.67,143.62,15.4571]
[1718400728565,2.5753,143.68,143.63,7.728]
[1718400728775,2.5753,143.68,143.63,12.8801]
[1718400728940,6.4563,143.74,143.59,0.34]
[1718400729270,2.5746,143.71,143.66,7.7263]
[1718400729439,2.5746,143.71,143.67,2.5753]
[1718400729638,23.0498,143.72,143.67,2.5753]
[1718400729857,15.3263,143.72,143.69,2.5749]
[1718400730241,17.9008,143.72,143.68,2.575]
[1718400730439,15.3263,143.72,143.68,7.7254]
[1718400730882,5.148,143.75,143.69,18.0242]
[1718400731047,2.5744,143.73,143.62,27.1557]
[1718400731254,5.1479,143.75,143.64,21.0]
[1718400731557,2.5739,143.75,143.71,2.5745]
[1718400731862,25.7375,143.76,143.71,7.7237]
[1718400732069,2.5738,143.76,143.71,15.4474]
[1718400732244,15.4427,143.76,143.71,7.7236]
[1718400732449,2.5739,143.75,143.7,23.1723]
[1718400732778,2.5737,143.76,143.72,2.5743]
[1718400733081,2.5737,143.76,143.72,2.5744]
[1718400733242,2.5737,143.76,143.71,2.5746]
[1718400733243,2.5739,143.75,143.71,2.5746]
[1718400733542,25.7392,143.75,143.7,2.5747]
[1718400733737,15.4449,143.74,143.68,18.0258]
[1718400733945,25.7415,143.74,143.69,2.5749]
[1718400734154,2.5742,143.73,143.69,2.5749]
[1718400734690,2.5737,143.76,143.65,41.0]
[1718400734860,2.5737,143.76,143.72,2.5744]
[1718400735057,16.5531,143.78,143.53,267.5]
[1718400735286,2.5748,143.7,143.65,25.7556]
[1718400735621,2.5748,143.7,143.65,5.1512]
[1718400735765,45.0,143.77,143.66,2.5755]
[1718400736099,7.7245,143.7,143.65,7.7267]
[1718400736400,2.5747,143.71,143.67,2.5753]
[1718400736697,5.1489,143.72,143.66,18.0278]
[1718400736997,25.7449,143.72,143.67,2.5753]
[1718400737160,10.2964,143.74,143.61,21.0]
[1718400737360,116.5531,143.78,143.63,0.17]
[1718400737361,5.1489,143.72,143.63,0.17]
[1718400737570,2.5743,143.73,143.63,21.68]
[1718400737861,18.0199,143.73,143.67,5.1503]
[1718400738192,2.5744,143.72,143.68,2.575]
[1718400738374,7.7235,143.72,143.67,7.7258]
[1718400738570,2.5745,143.72,143.67,25.7529]
[1718400738768,16.5531,143.78,143.63,0.68]
[1718400738967,16.5531,143.78,143.7,2.5746]
[1718400738968,2.5741,143.74,143.7,2.5746]
[1718400739285,16.5531,143.78,143.72,2.5743]
[1718400739286,5.1471,143.77,143.72,2.5743]
[1718400739586,2.5739,143.75,143.71,2.5745]
[1718400739790,2.5739,143.75,143.71,7.7234]
[1718400739967,2.5737,143.76,143.72,2.5744]
[1718400740285,16.5531,143.78,143.7,2.5746]
[1718400740473,7.7218,143.75,143.7,7.7242]
[1718400740868,2.574,143.75,143.71,2.5746]
[1718400741067,15.4425,143.76,143.71,9.11505718]
[1718400741274,7.7213,143.76,143.71,9.11505718]
[1718400741482,2.5739,143.75,143.71,2.5746]
[1718400741683,25.738,143.76,143.71,2.5745]
[1718400741861,2.5739,143.75,143.71,2.5745]
[1718400742068,7.7215,143.76,143.71,7.7237]
[1718400742266,2.5739,143.75,143.71,2.5745]
[1718400742469,2.5739,143.75,143.71,3.12901481]
[1718400742785,23.1638,143.76,143.71,3.12901481]
[1718400742992,7.7218,143.75,143.7,7.7241]
[1718400743190,7.7218,143.75,143.71,2.5746]
[1718400743191,2.5739,143.75,143.71,2.5746]
[1718400743393,12.8695,143.75,143.7,7.724]
[1718400743701,2.574,143.74,143.7,2.5747]
[1718400744198,2.574,143.74,143.7,2.5748]
[1718400744403,16.5531,143.78,143.67,5.1505]
[1718400744606,16.5531,143.78,143.67,2.5753]
[1718400744607,2.5746,143.71,143.67,2.5753]
[1718400744895,2.5745,143.72,143.68,2.5751]
[1718400745081,2.5743,143.73,143.69,2.5748]
[1718400745265,5.1486,143.73,143.68,5.1501]
[1718400745464,7.7236,143.72,143.68,2.5751]
[1718400745768,23.1686,143.73,143.68,2.5751]
[1718400746087,2.5743,143.73,143.69,2.5749]
[1718400746295,2.5746,143.71,143.67,2.5753]
[1718400746493,2.5746,143.71,143.67,7.7258]
[1718400746671,2.5744,143.72,143.68,2.5751]
[1718400746864,116.5531,143.78,143.64,1.39171781]
[1718400747064,116.5531,143.78,143.67,23.1774]
[1718400747065,7.7233,143.72,143.67,23.1774]
[1718400747289,15.4466,143.72,143.67,7.7256]
[1718400747464,2.5746,143.71,143.67,2.5752]
[1718400747661,7.7229,143.73,143.68,5.1502]
[1718400747863,2.5741,143.74,143.69,12.8745]
[1718400748061,2.5742,143.73,143.69,7.7246]
[1718400748264,16.5531,143.78,143.62,27.1557]
[1718400748265,16.5531,143.78,143.64,21.17]
[1718400748502,2.5743,143.73,143.69,2.5749]
[1718400748707,25.7431,143.73,143.68,7.7253]
[1718400748870,2.5745,143.72,143.68,7.7253]
[1718400749181,16.5531,143.78,143.66,5.1507]
[1718400749389,7.724,143.71,143.67,2.5753]
[1718400749590,16.5531,143.78,143.68,10.6405]
[1718400749902,7.7228,143.73,143.68,23.1755]
[1718400750205,2.5743,143.73,143.69,2.5749]
[1718400750409,7.7228,143.73,143.69,2.5749]
[1718400750787,2.5744,143.72,143.68,23.1755]
[1718400750984,5.1486,143.73,143.68,23.1755]
[1718400751183,2.5744,143.72,143.68,7.7251]
[1718400751375,12.8714,143.73,143.68,7.7252]
[1718400751614,7.7229,143.73,143.68,23.1762]
[1718400751776,2.5746,143.71,143.67,7.7256]
[1718400751975,5.1494,143.71,143.66,0.17]
[1718400752179,23.1709,143.72,143.67,7.7258]
[1718400752376,5.1493,143.71,143.66,5.1507]
[1718400752602,7.724,143.71,143.67,2.5752]
[1718400753020,2.5748,143.7,143.66,2.5753]
[1718400753196,23.8191917,143.78,143.67,18.0268]
[1718400753503,23.1704,143.72,143.68,2.5751]
[1718400753677,25.7449,143.72,143.67,15.4516]
[1718400753876,2.5746,143.71,143.67,7.7257]
[1718400754077,7.7238,143.71,143.67,2.5752]
[1718400754302,18.0204,143.73,143.68,2.5751]
[1718400754502,2.5743,143.73,143.69,2.5749]
[1718400754690,2.5743,143.73,143.69,7.7248]
[1718400755078,7.7228,143.73,143.69,2.5749]
[1718400755274,7.7235,143.72,143.67,18.0268]
[1718400755473,7.7235,143.72,143.66,0.17]
[1718400755474,2.5743,143.73,143.69,2.5749]
[1718400755704,7.7234,143.72,143.68,2.5751]
[1718400755996,2.5744,143.73,143.69,2.5749]
[1718400756388,5.1484,143.74,143.69,5.1499]
[1718400756711,2.5743,143.73,143.69,7.7248]
[1718400756879,2.5743,143.73,143.69,2.5749]
[1718400756880,7.7228,143.73,143.69,2.5749]
[1718400757083,2.5743,143.73,143.69,2.5749]
[1718400757280,2.5743,143.73,143.69,7.7248]
[1718400757505,5.1478,143.75,143.68,0.17]
[1718400757798,16.5531,143.78,143.69,5.4898]
[1718400757799,7.7224,143.74,143.69,5.4898]
[1718400757997,7.722,143.75,143.71,2.5745]
[1718400758208,7.722,143.75,143.7,23.1727]
[1718400758209,2.5741,143.74,143.7,2.5747]
[1718400758387,7.7225,143.74,143.7,2.5747]
[1718400758583,7.7225,143.74,143.69,23.514]
[1718400758584,15.4448,143.74,143.69,26.0888]
[1718400758903,7.7225,143.74,143.7,2.5747]
[1718400759079,2.5746,143.71,143.61,18.0256]
[1718400759276,2.5746,143.71,143.67,2.5752]
[1718400759474,16.5531,143.78,143.63,20.0]
[1718400759475,2.5748,143.7,143.63,20.0]
[1718400759680,5.1496,143.7,143.65,25.7558]
[1718400759901,116.5531,143.78,143.66,2.5755]
[1718400760085,7.7245,143.7,143.66,2.5755]
[1718400760288,7.7245,143.7,143.66,2.5754]
[1718400760482,15.4481,143.71,143.65,7.7268]
[1718400760676,12.8741,143.7,143.65,18.0292]
[1718400760882,2.5749,143.69,143.64,23.182]
[1718400761087,2.5749,143.69,143.65,2.5755]
[1718400761289,7.7248,143.69,143.65,2.5755]
[1718400761589,7.7248,143.69,143.65,7.7269]
[1718400761590,2.5749,143.69,143.65,7.7269]
[1718400761797,7.726,143.67,143.62,29.3412]
[1718400762109,7.7261,143.67,143.63,2.5759]
[1718400762707,7.7257,143.68,143.64,2.5758]
[1718400763009,2.5753,143.67,143.63,25.76]
[1718400763215,25.7518,143.68,143.63,25.76]
[1718400763414,25.7518,143.68,143.64,2.5758]
[1718400763706,7.7257,143.68,143.64,2.5758]
[1718400764410,7.725,143.69,143.65,2.5756]
[1718400764608,5.1496,143.7,143.66,2.5753]
[1718400764796,7.7245,143.7,143.66,2.5754]
[1718400764993,7.725,143.69,143.65,2.5756]
[1718400765494,15.4499,143.69,143.65,2.5756]
[1718400765703,23.1742,143.7,143.65,23.1809]
[1718400765902,7.7244,143.7,143.66,2.5754]
[1718400766101,7.724,143.71,143.66,15.4527]
[1718400766408,2.5747,143.71,143.67,15.4516]
[1718400766603,7.7234,143.72,143.68,2.5751]
[1718400766810,2.5745,143.72,143.68,2.575]
[1718400767113,5.1489,143.72,143.68,2.5751]
[1718400767413,12.8715,143.73,143.68,7.7253]
[1718400767712,21.5071,143.8,143.71,25.7452]
[1718400768009,21.5071,143.8,143.74,2.574]
[1718400768010,2.5735,143.78,143.74,2.574]
[1718400768210,2.5736,143.77,143.73,25.7417]
[1718400768392,7.7207,143.77,143.73,7.7224]
[1718400768906,2.5735,143.77,143.73,25.7416]
[1718400769305,23.1606,143.78,143.73,25.7416]
[1718400769306,25.7341,143.78,143.74,2.574]
[1718400769494,2.5735,143.77,143.73,15.4451]
[1718400769695,25.7341,143.78,143.74,2.574]
[1718400769900,2.5735,143.77,143.73,25.7421]
[1718400770309,0.854524,143.79,143.76,2.5735]
[1718400770497,0.854524,143.79,143.76,7.721]
[1718400770705,3.427724,143.79,143.75,7.7214]
[1718400770905,3.427724,143.79,143.75,25.7386]
[1718400771096,3.427724,143.79,143.75,7.7214]
[1718400771299,0.854524,143.79,143.75,23.1647]
[1718400771607,8.574124,143.79,143.75,2.5738]
[1718400771910,3.427724,143.79,143.75,7.7215]
[1718400772119,3.427724,143.79,143.75,15.4432]
[1718400772302,8.574124,143.79,143.75,7.7215]
[1718400772500,25.7342,143.78,143.74,2.574]
[1718400772702,23.1607,143.78,143.73,23.1673]
[1718400772904,0.854524,143.79,143.73,0.17]
[1718400773220,7.7203,143.78,143.74,2.574]
[1718400773425,0.854524,143.79,143.72,0.34]
[1718400773602,0.854524,143.79,143.78,25.7336]
[1718400775718,0.854524,143.79,143.77,2.5734]
[1718400775915,0.854524,143.79,143.78,7.89]
[1718400776119,0.854524,143.79,143.78,26.4136]
[1718400778906,0.854524,143.79,143.78,26.2436]
[1718400779718,0.854524,143.79,143.78,26.4136]
[1718400780639,0.854524,143.79,143.78,26.0736]
[1718400780922,0.854524,143.79,143.78,15.4401]
[1718400781107,0.854524,143.79,143.77,23.1606]
[1718400781436,0.854524,143.79,143.78,2.5733]
[1718400781720,0.854524,143.79,143.78,25.7336]
[1718400782623,0.854524,143.79,143.78,47.2436]
[1718400782800,0.854524,143.79,143.78,47.4136]
[1718400783400,0.854524,143.79,143.78,26.4136]
[1718400784528,0.854524,143.79,143.78,3.2533]
[1718400784717,0.854524,143.79,143.78,7.72]
[1718400785329,0.854524,143.79,143.77,15.441]
[1718400785500,0.854524,143.79,143.77,7.7204]
[1718400785699,0.854524,143.79,143.76,23.1628]
[1718400785928,0.854524,143.79,143.77,7.7204]
[1718400786114,0.854524,143.79,143.77,2.5734]
[1718400786319,0.854524,143.79,143.77,2.5735]
[1718400786508,0.854524,143.79,143.77,2.5734]
[1718400786708,0.854524,143.79,143.77,12.8676]
[1718400786917,0.854524,143.79,143.77,25.7352]
[1718400787232,0.854524,143.79,143.71,6.1557]
[1718400787404,0.854524,143.79,143.76,2.5737]
[1718400787605,3.427724,143.79,143.75,7.7215]
[1718400787819,15.4402,143.78,143.74,2.5739]
[1718400788122,15.4402,143.78,143.73,23.1674]
[1718400788123,2.5735,143.77,143.73,25.7416]
[1718400788326,2.5735,143.77,143.73,2.5741]
[1718400788726,7.7206,143.77,143.73,2.5741]
[1718400788927,7.7204,143.78,143.74,2.574]
[1718400789233,0.854524,143.79,143.71,6.1557]
[1718400789529,15.4418,143.77,143.68,27.1557]
[1718400789737,0.854524,143.79,143.72,18.0208]
[1718400789901,2.5742,143.74,143.7,2.5747]
[1718400790102,7.7224,143.74,143.7,2.5747]
[1718400790501,7.7229,143.73,143.69,2.5749]
[1718400790700,2.5744,143.73,143.69,7.7248]
[1718400790907,2.5746,143.71,143.67,7.7257]
[1718400791139,2.5749,143.7,143.66,2.5754]
[1718400791314,25.7468,143.71,143.66,7.7264]
[1718400791514,2.575,143.69,143.65,7.7267]
[1718400792215,10.3,143.69,143.63,18.0315]
[1718400792422,15.4516,143.68,143.63,12.88]
[1718400792711,7.7257,143.68,143.64,2.5758]
[1718400792926,12.8768,143.67,143.62,25.7616]
[1718400793129,7.7257,143.68,143.64,2.5758]
[1718400793326,7.7261,143.67,143.63,2.5759]
[1718400793534,15.4522,143.67,143.62,25.7617]
[1718400793735,7.7261,143.67,143.63,2.576]
[1718400794317,5.1507,143.67,143.62,23.1856]
[1718400794524,2.5754,143.67,143.63,7.728]
[1718400794728,2.5755,143.66,143.62,20.6095]
[1718400794925,7.7262,143.67,143.63,2.576]
[1718400795759,2.5759,143.64,143.6,2.5765]
[1718400795929,23.179,143.67,143.62,2.5761]
[1718400795930,2.5756,143.66,143.62,2.5761]
[1718400796125,5.1505,143.68,143.59,0.34]
[1718400796355,2.5755,143.66,143.62,5.1522]
[1718400796549,2.5755,143.66,143.62,15.457]
[1718400796738,25.7537,143.67,143.63,2.576]
[1718400796926,7.7261,143.67,143.63,2.576]
[1718400797320,2.5755,143.66,143.62,25.7618]
[1718400797536,7.7261,143.67,143.63,5.1521]
[1718400797738,7.7261,143.67,143.63,7.728]
[1718400797940,2.5754,143.67,143.63,7.728]
[1718400798156,15.4521,143.67,143.63,2.5759]
[1718400798448,2.5755,143.66,143.63,2.5759]
[1718400798646,7.7261,143.67,143.63,2.5759]
[1718400798856,6.3024,143.7,143.6,0.17]
[1718400798857,2.575,143.69,143.6,0.17]
[1718400799153,5.1504,143.68,143.64,2.5757]
[1718400799330,2.5752,143.68,143.65,2.5757]
[1718400799534,8.8773,143.7,143.61,0.17]
[1718400799736,11.4521,143.7,143.66,5.151]
[1718400799951,2.575,143.69,143.65,25.7559]
[1718400800148,29.4758,143.7,143.65,5.1512]
[1718400800346,14.0268,143.7,143.66,7.7262]
[1718400800535,2.575,143.69,143.66,2.5753]
[1718400800734,2.575,143.69,143.65,25.7553]
[1718400801036,2.575,143.69,143.65,7.7266]
[1718400801435,7.725,143.69,143.65,7.7268]
[1718400801647,12.8752,143.69,143.65,2.5756]
[1718400801846,12.8752,143.69,143.63,0.17]
[1718400801847,6.3024,143.7,143.62,0.17]
[1718400802149,6.3024,143.7,143.67,2.5753]
[1718400802350,6.3024,143.7,143.67,2.5752]
[1718400802559,16.5305,143.72,143.66,0.34]
[1718400802743,16.5305,143.72,143.69,2.5749]
[1718400803341,2.5745,143.72,143.69,2.5749]
[1718400803544,2.5745,143.72,143.68,25.7509]
[1718400803742,2.5745,143.72,143.68,7.7251]
[1718400803951,2.5745,143.72,143.68,5.1501]
[1718400804152,2.5746,143.71,143.67,7.8958]
[1718400804454,2.5745,143.72,143.69,2.5749]
[1718400804635,2.5747,143.71,143.66,0.51]
[1718400804952,7.7228,143.73,143.69,7.7247]
[1718400805459,7.7229,143.73,143.69,7.7248]
[1718400805756,2.5744,143.72,143.68,7.7251]
[1718400805947,23.1688,143.73,143.69,2.5749]
[1718400806139,2.5746,143.71,143.67,15.6216]
[1718400806339,2.5746,143.71,143.68,2.5751]
[1718400806658,2.5746,143.71,143.67,23.3478]
[1718400806659,12.8729,143.72,143.67,0.17]
[1718400806855,25.7453,143.72,143.68,2.5751]
[1718400807060,23.1706,143.72,143.67,23.1775]
[1718400807231,2.5746,143.71,143.68,2.5751]
[1718400807437,7.7239,143.71,143.67,7.7256]
[1718400807637,2.5746,143.71,143.67,15.4516]
[1718400807858,2.5745,143.72,143.69,2.5749]
[1718400808078,2.5745,143.72,143.68,23.1761]
[1718400808364,7.7234,143.72,143.68,7.7251]
[1718400808561,23.1703,143.72,143.67,23.1769]
[1718400808740,2.5746,143.71,143.68,2.5751]
[1718400809235,2.5746,143.72,143.68,23.1762]
[1718400809541,7.7235,143.72,143.68,7.7253]
[1718400809733,7.7234,143.72,143.68,7.7252]
[1718400810145,15.4468,143.72,143.68,7.7252]
[1718400810668,23.1701,143.72,143.68,2.575]
[1718400810862,25.7446,143.72,143.68,7.7253]
[1718400811158,7.7234,143.72,143.68,7.7252]
[1718400811458,28.1174,143.75,143.58,106.1557]
[1718400811653,15.449,143.7,143.66,7.7263]
[1718400812035,23.1755,143.69,143.65,2.5756]
[1718400812244,25.7506,143.69,143.65,2.5756]
[1718400812453,25.7506,143.69,143.65,12.8782]
[1718400812454,2.5751,143.69,143.65,12.8782]
[1718400812651,23.1723,143.71,143.67,2.5752]
[1718400812865,2.5748,143.7,143.67,2.5752]
[1718400813036,2.5748,143.7,143.66,23.1787]
[1718400813037,12.874,143.7,143.66,7.7261]
[1718400813237,2.5749,143.7,143.67,2.5752]
[1718400813656,21.94,143.72,143.68,2.575]
[1718400813657,23.1703,143.72,143.68,2.575]
[1718400813844,2.5746,143.71,143.67,25.7523]
[1718400814044,2.5746,143.71,143.67,5.1505]
[1718400814261,2.5746,143.71,143.68,2.5751]
[1718400814465,10.2978,143.72,143.67,5.1505]
[1718400814635,5.1489,143.72,143.68,12.8756]
[1718400814950,18.0205,143.73,143.68,12.8755]
[1718400815268,21.94,143.73,143.65,5.1513]
[1718400815567,2.5752,143.68,143.64,25.7581]
[1718400815767,15.451,143.68,143.64,7.7273]
[1718400815980,2.5752,143.68,143.64,15.4549]
[1718400816153,2.5752,143.68,143.64,7.7274]
[1718400816154,7.7258,143.68,143.64,7.7274]
[1718400816481,7.7257,143.68,143.64,2.5757]
[1718400816653,2.575,143.69,143.66,2.5754]
[1718400817244,2.5752,143.68,143.64,18.0304]
[1718400817653,17.8614,143.7,143.65,7.727]
[1718400817841,17.8614,143.7,143.67,2.5753]
[1718400818039,15.2866,143.7,143.67,2.5753]
[1718400818452,15.2866,143.7,143.67,7.7259]
[1718400818651,17.8614,143.7,143.67,2.5753]
[1718400818958,33.3108,143.7,143.65,5.1513]
[1718400819165,41.0354,143.7,143.66,2.5754]
[1718400819351,41.0354,143.7,143.67,2.5753]
[1718400819352,17.8615,143.7,143.67,2.5753]
[1718400819558,17.8615,143.7,143.66,23.1793]
[1718400819870,30.7356,143.7,143.66,7.7262]
[1718400820074,23.0112,143.7,143.66,7.7262]
[1718400820450,2.575,143.69,143.65,25.7555]
[1718400820853,7.7249,143.69,143.65,7.7267]
[1718400821169,5.1499,143.69,143.65,2.5756]
[1718400821370,23.175,143.69,143.64,23.182]
[1718400821547,20.4364,143.7,143.66,2.5754]
[1718400821747,17.8615,143.7,143.66,5.1508]
[1718400821951,23.0111,143.7,143.66,7.7262]
[1718400822269,17.8615,143.7,143.66,25.7544]
[1718400822472,7.7249,143.69,143.65,7.7266]
[1718400822652,17.8615,143.7,143.66,23.1792]
[1718400822853,23.0111,143.7,143.66,25.7545]
[1718400823373,17.8615,143.7,143.67,2.5753]
[1718400823746,17.8615,143.7,143.66,23.1792]
[1718400823946,17.8615,143.7,143.66,25.7545]
[1718400824164,17.8615,143.7,143.67,2.5753]
[1718400824359,2.5742,143.74,143.69,25.7496]
[1718400824548,6.1774,143.75,143.68,0.17]
[1718400824748,0.854524,143.79,143.69,0.17]
[1718400824947,2.5734,143.78,143.74,2.574]
[1718400825177,3.427824,143.79,143.75,2.5738]
[1718400825352,3.427724,143.79,143.75,7.7216]
[1718400825555,8.574124,143.79,143.75,7.7216]
[1718400826375,2.5733,143.78,143.75,2.5738]
[1718400826674,2.5733,143.78,143.74,23.1657]
[1718400826855,2.5733,143.78,143.74,15.4438]
[1718400827168,2.5733,143.78,143.74,16.83495899]
[1718400827576,0.854524,143.79,143.69,0.34]
[1718400827785,8.574224,143.79,143.75,2.5738]
[1718400828573,2.5733,143.78,143.74,7.7219]
[1718400828954,12.8668,143.78,143.74,2.5739]
[1718400829289,2.5734,143.78,143.74,7.722]
[1718400829451,2.5734,143.78,143.74,12.8703]
[1718400829650,24.013424,143.79,143.74,5.148]
[1718400829949,8.574324,143.79,143.75,2.5738]
[1718400830377,2.5734,143.78,143.75,2.5738]
[1718400830553,7.7201,143.78,143.74,2.5739]
[1718400830755,3.427724,143.79,143.75,23.164]
[1718400830984,8.574024,143.79,143.75,7.7213]
[1718400831184,3.427724,143.79,143.76,2.5737]
[1718400831689,0.854524,143.79,143.77,9.11113586]
[1718400832021,0.854524,143.79,143.78,3.96404346]
[1718400832164,0.854524,143.79,143.78,9.11074346]
[1718400832478,0.854524,143.79,143.78,27.12434346]
[1718400832679,0.854524,143.79,143.78,26.2436]
[1718400832985,0.854524,143.79,143.78,26.0736]
[1718400834399,0.854524,143.79,143.78,26.2436]